fUST/lending_fUST_20240217
["ID","MTS","AMOUNT","RATE_DAILY","PERIOD"]
[314315981,1708177735735,-9774.1607563,0.00022776,2]
[314315982,1708177770531,1111.0,0.00033,120]
[314315983,1708177812483,-500.0,0.00022767,2]
[314315984,1708177812508,-500.0,0.00022767,2]
[314315985,1708177812533,-316.0736306,0.00022767,2]
[314315986,1708177812554,-294.44320783,0.00022767,2]
[314315987,1708177812575,-500.0,0.00022767,2]
[314315988,1708177812596,-500.0,0.00022767,2]
[314315989,1708177812620,-500.0,0.00022767,2]
[314315990,1708177812647,-500.0,0.00022767,2]
[314315991,1708177812670,-500.0,0.00022767,2]
[314315992,1708177812691,-232.65880358,0.00022767,2]
[314315993,1708177812714,-500.0,0.00022767,2]
[314315994,1708177812737,-500.0,0.00022767,2]
[314315995,1708177812763,-500.0,0.00022767,2]
[314315996,1708177812785,-500.0,0.00022767,2]
[314315997,1708177812806,-500.0,0.00022767,2]
[314315998,1708177812828,-500.0,0.00022767,2]
[314315999,1708177812851,-500.0,0.00022767,2]
[314316000,1708177812873,-500.0,0.00022767,2]
[314316001,1708177812894,-250.0,0.00022767,2]
[314316002,1708177812916,-500.0,0.00022767,2]
[314316003,1708177812937,-414.22242544,0.00022767,2]
[314316004,1708177812958,-200.63889149,0.00022767,2]
[314316005,1708177812984,-32711.96304106,0.00022776,2]
[314316048,1708177834513,-500.0,0.00022767,2]
[314316050,1708177834524,-500.00000001,0.00022767,2]
[314316052,1708177834534,-500.0,0.00022767,2]
[314316054,1708177834544,-500.0,0.00022767,2]
[314316056,1708177834553,-500.0,0.00022767,2]
[314316058,1708177834562,-500.0,0.00022767,2]
[314316060,1708177834572,-500.0,0.00022767,2]
[314316062,1708177834580,-500.0,0.00022767,2]
[314316064,1708177834590,-500.0,0.00022767,2]
[314316066,1708177834599,-500.0,0.00022767,2]
[314316068,1708177834609,-35.91295733,0.00022767,2]
[314316122,1708177841503,-6555.81685803,0.00022776,2]
[314316332,1708177844686,-5850.04931784,0.00022776,2]
[314316333,1708177844696,-4593.46126799,0.00022794,2]
[314316334,1708177844706,-1562.54267361,0.00022839,2]
[314316335,1708177844715,-200.0,0.00023075,7]
[314316336,1708177844724,-261.48978756,0.00023613,2]
[314316337,1708177844733,-1589.31384727,0.00023799,2]
[314316338,1708177844743,-579.0,0.000238,2]
[314316339,1708177844752,-155.01085076,0.00024246,2]
[314316340,1708177844761,-166.666666,0.00024658,2]
[314316342,1708177844770,-4742.55224727,0.00025082,2]
[314316343,1708177844781,-911.00498999,0.00025083,2]
[314316345,1708177844790,-166.666666,0.00025235,2]
[314316346,1708177844799,-280.0,0.00025382,7]
[314316347,1708177844809,-200.0,0.00025479,2]
[314316349,1708177844818,-730.06229268,0.00025668,2]
[314316350,1708177844827,-166.666666,0.00025812,2]
[314316353,1708177844837,-166.986022,0.00025908,2]
[314316355,1708177844846,-175.749376,0.00025908,2]
[314316356,1708177844855,-5000.0,0.00025991,2]
[314316358,1708177844864,-150.0,0.00026218,2]
[314316360,1708177844873,-169.86517107,0.0002628,2]
[314316362,1708177844882,-13453.10242035,0.0002628,3]
[314316364,1708177844892,-2396.33386863,0.0002628,2]
[314316366,1708177844901,-193.46149764,0.0002628,2]
[314316368,1708177844911,-273.07962264,0.0002628,2]
[314316370,1708177844919,-905.02588922,0.0002628,2]
[314316373,1708177844929,-160.92551233,0.0002628,2]
[314316375,1708177844938,-193.9960958,0.0002628,2]
[314316377,1708177844947,-382.08663879,0.0002628,2]
[314316378,1708177844956,-517.54032496,0.0002628,2]
[314316380,1708177844965,-200.28829505,0.0002628,2]
[314316382,1708177844974,-634.5502495,0.00026337,2]
[314316384,1708177844983,-166.666666,0.00026388,2]
[314316386,1708177844992,-153.0,0.00026712,2]
[314316388,1708177845000,-153.0,0.00026712,2]
[314316390,1708177845009,-153.0,0.00026712,2]
[314316392,1708177845018,-153.0,0.00026712,2]
[314316394,1708177845029,-166.666666,0.00026965,2]
[314316396,1708177845038,-518.39714784,0.00026999,2]
[314316398,1708177845047,-1000.0,0.00027,27]
[314316400,1708177845056,-150.0,0.00027218,2]
[314316402,1708177845065,-13374.99,0.00027377,3]
[314316405,1708177845074,-11145.82,0.00027377,3]
[314316407,1708177845083,-16049.98,0.00027387,3]
[314316409,1708177845092,-395.83507947,0.00027396,2]
[314316411,1708177845102,-456.43199653,0.00027396,2]
[314316413,1708177845111,-311.19857733,0.00027396,2]
[314316415,1708177845120,-500.0,0.00027396,2]
[314316417,1708177845130,-310.85114143,0.00027396,2]
[314316419,1708177845139,-500.0,0.00027396,2]
[314316420,1708177845148,-500.0,0.00027396,2]
[314316422,1708177845158,-500.0,0.00027396,2]
[314316424,1708177845167,-500.0,0.00027396,2]
[314316426,1708177845177,-500.0,0.00027396,2]
[314316428,1708177845186,-500.0,0.00027396,2]
[314316430,1708177845195,-268.55058386,0.00027396,2]
[314316432,1708177845204,-500.0,0.00027396,2]
[314316434,1708177845213,-500.0,0.00027396,2]
[314316436,1708177845222,-500.0,0.00027396,2]
[314316438,1708177845231,-500.0,0.00027396,2]
[314316440,1708177845240,-500.0,0.00027396,2]
[314316442,1708177845250,-500.0,0.00027396,2]
[314316444,1708177845259,-500.0,0.00027396,2]
[314316446,1708177845269,-500.0,0.00027396,2]
[314316448,1708177845280,-500.0,0.00027396,2]
[314316450,1708177845289,-500.0,0.00027396,2]
[314316452,1708177845299,-500.0,0.00027396,2]
[314316454,1708177845308,-500.0,0.00027396,2]
[314316457,1708177845318,-500.0,0.00027396,2]
[314316458,1708177845327,-500.0,0.00027396,2]
[314316460,1708177845336,-1489.8,0.00027397,2]
[314316469,1708177845426,-500.0,0.00027397,2]
[314316471,1708177845439,-500.0,0.00027397,2]
[314316473,1708177845449,-531.53967277,0.00027397,2]
[314316474,1708177845458,-500.0,0.00027397,2]
[314316476,1708177845468,-173.19470346,0.00027397,2]
[314316479,1708177845477,-844.87,0.00027397,2]
[314316481,1708177845486,-790.52,0.00027397,2]
[314316483,1708177845496,-500.0,0.00027397,2]
[314316486,1708177845507,-500.0,0.00027397,2]
[314316488,1708177845517,-155.0,0.00027397,2]
[314316490,1708177845527,-500.0,0.00027397,2]
[314316492,1708177845536,-838.87,0.00027397,2]
[314316493,1708177845545,-569.95,0.00027397,2]
[314316495,1708177845554,-500.0,0.00027397,2]
[314316497,1708177845563,-500.0,0.00027397,2]
[314316498,1708177845572,-500.0,0.00027397,2]
[314316499,1708177845581,-500.0,0.00027397,2]
[314316500,1708177845590,-500.0,0.00027397,2]
[314316501,1708177845600,-1335.45,0.00027397,2]
[314316503,1708177845609,-500.0,0.00027397,2]
[314316504,1708177845619,-3589.06,0.00027397,2]
[314316505,1708177845630,-205.16619514,0.00027397,2]
[314316506,1708177845639,-413.90643713,0.00027397,2]
[314316507,1708177845648,-3436.26,0.00027397,2]
[314316508,1708177845658,-500.0,0.00027397,2]
[314316509,1708177845668,-3104.48,0.00027397,2]
[314316510,1708177845677,-500.0,0.00027397,2]
[314316511,1708177845685,-7038.66,0.00027397,2]
[314316512,1708177845695,-995.13,0.00027397,2]
[314316513,1708177845707,-577.54,0.00027397,2]
[314316514,1708177845718,-4057.33,0.00027397,2]
[314316515,1708177845727,-349.85214629,0.00027397,2]
[314316516,1708177845736,-648.91,0.00027397,2]
[314316517,1708177845745,-929.97,0.00027397,2]
[314316518,1708177845754,-500.0,0.00027397,2]
[314316519,1708177845763,-533.88,0.00027397,2]
[314316521,1708177845772,-500.0,0.00027397,2]
[314316523,1708177845783,-500.0,0.00027397,2]
[314316525,1708177845793,-500.0,0.00027397,2]
[314316527,1708177845802,-1141.08,0.00027397,2]
[314316530,1708177845811,-5720.14,0.00027397,2]
[314316532,1708177845820,-697.64,0.00027397,2]
[314316534,1708177845829,-393.03659485,0.00027397,2]
[314316537,1708177845838,-509.32571542,0.00027397,2]
[314316539,1708177845847,-553.59,0.00027397,2]
[314316540,1708177845856,-511.88614491,0.00027397,2]
[314316542,1708177845865,-503.65309065,0.00027397,2]
[314316544,1708177845874,-507.92810828,0.00027397,2]
[314316546,1708177845884,-500.0,0.00027397,2]
[314316547,1708177845894,-500.0,0.00027397,2]
[314316549,1708177845903,-504.59002866,0.00027397,2]
[314316551,1708177845912,-504.03194295,0.00027397,2]
[314316552,1708177845921,-500.0,0.00027397,2]
[314316555,1708177845930,-507.20592156,0.00027397,2]
[314316557,1708177845939,-500.0,0.00027397,2]
[314316558,1708177845948,-507.29918256,0.00027397,2]
[314316559,1708177845957,-753.89,0.00027397,2]
[314316560,1708177845966,-507.90861897,0.00027397,2]
[314316561,1708177845975,-500.0,0.00027397,2]
[314316562,1708177845984,-500.0,0.00027397,2]
[314316564,1708177845992,-532.40255458,0.00027397,2]
[314316565,1708177846002,-500.0,0.00027397,2]
[314316566,1708177846011,-508.45134433,0.00027397,2]
[314316567,1708177846020,-153.97984482,0.00027397,2]
[314316568,1708177846031,-5461.28,0.00027397,2]
[314316569,1708177846040,-505.31742375,0.00027397,2]
[314316570,1708177846049,-624.83,0.00027397,2]
[314316571,1708177846058,-501.33794625,0.00027397,2]
[314316572,1708177846067,-150.1,0.00027397,2]
[314316573,1708177846077,-166.666666,0.00027542,2]
[314316574,1708177846085,-10001.42156767,0.00027564,5]
[314316575,1708177846095,-4111.9942946,0.00027571,2]
[314316576,1708177846104,-5000.0,0.00027589,5]
[314316578,1708177846113,-5000.0,0.00027589,5]
[314316580,1708177846123,-2782.65161935,0.00027589,5]
[314316581,1708177846136,-2217.34838065,0.00027589,5]
[314316582,1708177846146,-5000.0,0.00027589,5]
[314316583,1708177846155,-5000.0,0.00027595,5]
[314316584,1708177846164,-151.0,0.00027595,2]
[314316585,1708177846174,-151.0,0.00027595,2]
[314316586,1708177846183,-151.0,0.00027595,2]
[314316587,1708177846193,-151.0,0.00027595,2]
[314316588,1708177846202,-151.0,0.00027595,2]
[314316589,1708177846212,-151.0,0.00027595,2]
[314316590,1708177846221,-620.72751247,0.00027653,2]
[314316591,1708177846231,-1489.8,0.00027671,2]
[314316592,1708177846240,-500.0,0.00027671,2]
[314316593,1708177846249,-500.0,0.00027671,2]
[314316594,1708177846259,-398.45957273,0.00027671,2]
[314316595,1708177846268,-844.87,0.00027671,2]
[314316596,1708177846279,-790.52,0.00027671,2]
[314316597,1708177846288,-500.0,0.00027671,2]
[314316598,1708177846298,-500.0,0.00027671,2]
[314316599,1708177846307,-500.0,0.00027671,2]
[314316600,1708177846317,-838.87,0.00027671,2]
[314316601,1708177846326,-569.95,0.00027671,2]
[314316602,1708177846335,-500.0,0.00027671,2]
[314316603,1708177846345,-500.0,0.00027671,2]
[314316604,1708177846354,-500.0,0.00027671,2]
[314316605,1708177846363,-500.0,0.00027671,2]
[314316606,1708177846372,-500.0,0.00027671,2]
[314316607,1708177846381,-1335.45,0.00027671,2]
[314316608,1708177846391,-500.0,0.00027671,2]
[314316609,1708177846400,-3589.06,0.00027671,2]
[314316610,1708177846409,-3436.26,0.00027671,2]
[314316611,1708177846419,-500.0,0.00027671,2]
[314316612,1708177846429,-3104.48,0.00027671,2]
[314316613,1708177846438,-500.0,0.00027671,2]
[314316614,1708177846448,-7038.66,0.00027671,2]
[314316615,1708177846457,-995.13,0.00027671,2]
[314316616,1708177846466,-577.54,0.00027671,2]
[314316617,1708177846475,-2790.36535434,0.00027671,2]
[314316618,1708177846493,-1266.96464566,0.00027671,2]
[314316619,1708177846502,-270.86535434,0.00027671,2]
[314316620,1708177846513,-378.04464566,0.00027671,2]
[314316621,1708177846523,-929.97,0.00027671,2]
[314316622,1708177846532,-500.0,0.00027671,2]
[314316623,1708177846542,-533.88,0.00027671,2]
[314316624,1708177846551,-500.0,0.00027671,2]
[314316625,1708177846560,-500.0,0.00027671,2]
[314316626,1708177846569,-500.0,0.00027671,2]
[314316627,1708177846578,-1141.08,0.00027671,2]
[314316628,1708177846587,-590.386406,0.00027671,2]
[314316629,1708177846596,-590.386406,0.00027671,2]
[314316630,1708177846609,-595.86449355,0.00027671,2]
[314316631,1708177846621,-5124.27550645,0.00027671,2]
[314316632,1708177846630,-697.64,0.00027671,2]
[314316633,1708177846640,-553.59,0.00027671,2]
[314316634,1708177846650,-502.69462931,0.00027671,2]
[314316635,1708177846659,-753.89,0.00027671,2]
[314316636,1708177846668,-500.0,0.00027671,2]
[314316637,1708177846677,-5461.28,0.00027671,2]
[314316638,1708177846686,-624.83,0.00027671,2]
[314316639,1708177846695,-391.0,0.0002792,15]
[314316640,1708177846706,-353.10966696,0.00027944,2]
[314316641,1708177846716,-1489.8,0.00027945,2]
[314316642,1708177846725,-500.0,0.00027945,2]
[314316643,1708177846734,-500.0,0.00027945,2]
[314316644,1708177846743,-844.87,0.00027945,2]
[314316645,1708177846752,-790.52,0.00027945,2]
[314316646,1708177846762,-500.0,0.00027945,2]
[314316647,1708177846772,-500.0,0.00027945,2]
[314316648,1708177846782,-500.0,0.00027945,2]
[314316649,1708177846791,-838.87,0.00027945,2]
[314316650,1708177846800,-569.95,0.00027945,2]
[314316651,1708177846810,-500.0,0.00027945,2]
[314316652,1708177846819,-500.0,0.00027945,2]
[314316653,1708177846828,-500.0,0.00027945,2]
[314316654,1708177846836,-151.0,0.00027945,2]
[314316655,1708177846845,-500.0,0.00027945,2]
[314316656,1708177846854,-500.0,0.00027945,2]
[314316657,1708177846863,-1335.45,0.00027945,2]
[314316658,1708177846872,-151.0,0.00027945,2]
[314316659,1708177846882,-500.0,0.00027945,2]
[314316660,1708177846891,-3589.06,0.00027945,2]
[314316661,1708177846900,-151.0,0.00027945,2]
[314316662,1708177846909,-3436.26,0.00027945,2]
[314316663,1708177846918,-500.0,0.00027945,2]
[314316664,1708177846927,-3104.48,0.00027945,2]
[314316665,1708177846936,-500.0,0.00027945,2]
[314316666,1708177846945,-151.0,0.00027945,2]
[314316667,1708177846954,-7038.66,0.00027945,2]
[314316668,1708177846963,-995.13,0.00027945,2]
[314316669,1708177846972,-577.54,0.00027945,2]
[314316670,1708177846981,-4057.33,0.00027945,2]
[314316671,1708177846990,-151.0,0.00027945,2]
[314316672,1708177846999,-198.834441,0.00027945,2]
[314316673,1708177847008,-648.91,0.00027945,2]
[314316674,1708177847018,-929.97,0.00027945,2]
[314316675,1708177847028,-316.71174499,0.00027945,2]
[314316676,1708177847037,-533.88,0.00027945,2]
[314316677,1708177847047,-500.0,0.00027945,2]
[314316678,1708177847056,-500.0,0.00027945,2]
[314316679,1708177847066,-500.0,0.00027945,2]
[314316680,1708177847075,-1141.08,0.00027945,2]
[314316681,1708177847084,-590.386406,0.00027945,2]
[314316682,1708177847093,-590.386406,0.00027945,2]
[314316683,1708177847102,-5720.14,0.00027945,2]
[314316684,1708177847111,-697.64,0.00027945,2]
[314316685,1708177847121,-553.59,0.00027945,2]
[314316686,1708177847130,-753.89,0.00027945,2]
[314316687,1708177847139,-500.0,0.00027945,2]
[314316688,1708177847148,-5461.28,0.00027945,2]
[314316689,1708177847226,-624.83,0.00027945,2]
[314316690,1708177847235,-1000.0,0.00028,28]
[314316691,1708177847245,-2112.04675744,0.00028,2]
[314316692,1708177847254,-600.0,0.00028,2]
[314316693,1708177847264,-200.0,0.00028,4]
[314316694,1708177847274,-200.9070644,0.00028,2]
[314316695,1708177847284,-150.0,0.00028218,2]
[314316696,1708177847293,-500.0,0.00028219,2]
[314316697,1708177847302,-500.0,0.00028219,2]
[314316698,1708177847312,-1489.8,0.00028219,2]
[314316699,1708177847321,-500.0,0.00028219,2]
[314316700,1708177847330,-500.0,0.00028219,2]
[314316701,1708177847339,-844.87,0.00028219,2]
[314316702,1708177847348,-790.52,0.00028219,2]
[314316703,1708177847358,-500.0,0.00028219,2]
[314316704,1708177847367,-500.0,0.00028219,2]
[314316705,1708177847376,-500.0,0.00028219,2]
[314316706,1708177847385,-838.87,0.00028219,2]
[314316707,1708177847395,-569.95,0.00028219,2]
[314316708,1708177847404,-500.0,0.00028219,2]
[314316709,1708177847413,-500.0,0.00028219,2]
[314316710,1708177847424,-253.00825213,0.00028219,2]
[314316711,1708177847433,-151.0,0.00028219,2]
[314316712,1708177847443,-500.0,0.00028219,2]
[314316713,1708177847452,-500.0,0.00028219,2]
[314316714,1708177847461,-1335.45,0.00028219,2]
[314316715,1708177847470,-151.0,0.00028219,2]
[314316716,1708177847479,-500.0,0.00028219,2]
[314316717,1708177847488,-3589.06,0.00028219,2]
[314316718,1708177847497,-151.0,0.00028219,2]
[314316719,1708177847506,-3436.26,0.00028219,2]
[314316720,1708177847515,-313.90532087,0.00028219,2]
[314316721,1708177847525,-3104.48,0.00028219,2]
[314316722,1708177847534,-500.0,0.00028219,2]
[314316723,1708177847543,-7038.66,0.00028219,2]
[314316724,1708177847552,-995.13,0.00028219,2]
[314316725,1708177847561,-577.54,0.00028219,2]
[314316726,1708177847571,-151.0,0.00028219,2]
[314316727,1708177847580,-4057.33,0.00028219,2]
[314316728,1708177847589,-151.0,0.00028219,2]
[314316729,1708177847598,-648.91,0.00028219,2]
[314316730,1708177847609,-929.97,0.00028219,2]
[314316731,1708177847619,-533.88,0.00028219,2]
[314316732,1708177847632,-500.0,0.00028219,2]
[314316733,1708177847641,-500.0,0.00028219,2]
[314316734,1708177847649,-500.0,0.00028219,2]
[314316735,1708177847658,-1141.08,0.00028219,2]
[314316736,1708177847668,-590.386406,0.00028219,2]
[314316737,1708177847678,-590.386406,0.00028219,2]
[314316738,1708177847686,-5720.14,0.00028219,2]
[314316739,1708177847696,-697.64,0.00028219,2]
[314316740,1708177847706,-553.59,0.00028219,2]
[314316741,1708177847716,-753.89,0.00028219,2]
[314316742,1708177847725,-500.0,0.00028219,2]
[314316743,1708177847734,-401.191233,0.00028219,2]
[314316744,1708177847743,-401.191233,0.00028219,2]
[314316745,1708177847752,-5461.28,0.00028219,2]
[314316746,1708177847762,-624.83,0.00028219,2]
[314316747,1708177847771,-212.63194922,0.00028492,2]
[314316748,1708177847782,-1489.8,0.00028493,2]
[314316749,1708177847791,-500.0,0.00028493,2]
[314316750,1708177847800,-500.0,0.00028493,2]
[314316751,1708177847810,-844.87,0.00028493,2]
[314316752,1708177847819,-790.52,0.00028493,2]
[314316753,1708177847828,-500.0,0.00028493,2]
[314316754,1708177847836,-500.0,0.00028493,2]
[314316755,1708177847845,-500.0,0.00028493,2]
[314316756,1708177847855,-838.87,0.00028493,2]
[314316757,1708177847864,-569.95,0.00028493,2]
[314316758,1708177847873,-500.0,0.00028493,2]
[314316759,1708177847882,-500.0,0.00028493,2]
[314316760,1708177847890,-500.0,0.00028493,2]
[314316761,1708177847899,-500.0,0.00028493,2]
[314316762,1708177847909,-1335.45,0.00028493,2]
[314316763,1708177847919,-169.348185,0.00028493,2]
[314316764,1708177847927,-500.0,0.00028493,2]
[314316765,1708177847936,-3589.06,0.00028493,2]
[314316766,1708177847945,-284.451376,0.00028493,2]
[314316767,1708177847954,-3436.26,0.00028493,2]
[314316768,1708177847962,-3104.48,0.00028493,2]
[314316769,1708177847972,-500.0,0.00028493,2]
[314316770,1708177847981,-7038.66,0.00028493,2]
[314316771,1708177847990,-577.54,0.00028493,2]
[314316772,1708177847999,-995.13,0.00028493,2]
[314316773,1708177848009,-151.0,0.00028493,2]
[314316774,1708177848018,-4057.33,0.00028493,2]
[314316775,1708177848028,-151.0,0.00028493,2]
[314316776,1708177848037,-648.91,0.00028493,2]
[314316777,1708177848047,-929.97,0.00028493,2]
[314316778,1708177848056,-533.88,0.00028493,2]
[314316779,1708177848066,-326.13825967,0.00028493,2]
[314316780,1708177848075,-500.0,0.00028493,2]
[314316781,1708177848084,-500.0,0.00028493,2]
[314316782,1708177848093,-1141.08,0.00028493,2]
[314316783,1708177848102,-590.386406,0.00028493,2]
[314316784,1708177848111,-299.3187997,0.00028493,2]
[314316785,1708177848146,-291.0676063,0.00028493,2]
[314316786,1708177848155,-722.10365527,0.00028493,2]
[314316787,1708177848526,-895.10000001,0.00028493,2]
[314316810,1708178055875,169.53220994,0.0002,2]
[314316845,1708178277059,12100.28839274,0.00033,120]
[314316855,1708178744215,80.46779006,0.00020032,2]
[314316856,1708178744244,500.0,0.00020032,2]
[314316867,1708178831297,1500.0,0.00019838,2]
[314316901,1708179032383,-518.39714784,0.00019827,2]
[314316902,1708179032393,-1428.73370646,0.00019828,3]
[314316903,1708179032405,-13534.36629354,0.00019828,3]
[314316904,1708179032415,-12469.25,0.00019828,3]
[314316905,1708179032424,-10391.04,0.00019828,3]
[314316906,1708179032434,-702.8571901,0.00019838,2]
[314316908,1708179032443,-24900.0,0.00019838,2]
[314316910,1708179032453,-1316.83629702,0.00019838,2]
[314316952,1708179038295,-26696.96014898,0.00019838,2]
[314317711,1708179045983,-1809.52222488,0.00019838,2]
[314317744,1708179046281,-1596.09917428,0.00019838,2]
[314318058,1708179106022,327.93623601,0.00019727,2]
[314318059,1708179178276,1172.06376399,0.00019727,2]
[314318060,1708179201519,1500.0,0.00019561,2]
[314318061,1708179201549,696.5663516,0.00019561,2]
[314318062,1708179251283,714.6935325,0.0001947,2]
[314318063,1708179258504,88.7401159,0.00019196,2]
[314318064,1708179258533,80.0292621,0.00019196,2]
[314318065,1708179277568,882.32211761,0.000189,2]
[314318078,1708179677419,399.3591416,0.00019288,2]
[314318079,1708179784540,459.885497,0.00018672,2]
[314318081,1708179853336,3640.7553614,0.00019153,2]
[314318082,1708179853365,1537.64862029,0.00019153,2]
[314318083,1708179853393,2500.0,0.00019153,2]
[314318084,1708179853422,2500.0,0.00019153,2]
[314318085,1708179853450,2500.0,0.00019153,2]
[314318086,1708179858646,5000.0,0.00018672,2]
[314318087,1708179858677,5000.0,0.00018672,2]
[314318088,1708179858708,5000.0,0.00018672,2]
[314318089,1708179858737,5000.0,0.00018672,2]
[314318090,1708179858766,5000.0,0.00018672,2]
[314318133,1708180238430,-295.07125183,0.00018661,2]
[314318134,1708180238440,-155.0310062,0.00018662,2]
[314318135,1708180238449,-2110.63774197,0.00018671,2]
[314318136,1708180238461,-488.37018888,0.00018671,2]
[314318501,1708180246545,-218.82208866,0.00018671,2]
[314318502,1708180246554,-2717.61308321,0.00018672,2]
[314318505,1708180458762,300.0,0.00022,9]
[314318523,1708181254305,706.798231,0.00018295,2]
[314318524,1708181261675,652.5595213,0.00018294,2]
[314318525,1708181385616,7640.6422477,0.00018293,2]
[314318526,1708181385646,9000.0,0.00018293,2]
[314318527,1708181385680,8259.3577523,0.00018293,2]
[314318580,1708181432654,-918.23857007,0.00018614,2]
[314318582,1708181432665,-1952.34064868,0.00018614,2]
[314318588,1708181432724,-2539.15,0.00018614,2]
[314319093,1708181446534,-747.11,0.00018614,2]
[314319097,1708181446545,-8440.97023481,0.00018614,2]
[314319119,1708181446613,-4188.21131714,0.00018614,2]
[314319126,1708181446624,-20059.67962834,0.00018614,2]
[314319130,1708181446633,-6150.13611663,0.00018615,2]
[314319134,1708181446643,-197.62181463,0.00018715,2]
[314319136,1708181446653,-3953.40210881,0.00018799,2]
[314319139,1708181446666,-588.21474507,0.000189,2]
[314319141,1708181446675,-168.412857,0.00019178,2]
[314319144,1708181446686,-170.155914,0.000192,2]
[314319147,1708181446696,-500.0,0.00020879,2]
[314319149,1708181446707,-500.0,0.00020879,2]
[314319152,1708181446716,-500.0,0.00020879,2]
[314319154,1708181446726,-500.0,0.00020879,2]
[314319157,1708181446735,-500.0,0.00020879,2]
[314319160,1708181446746,-500.0,0.00020879,2]
[314319163,1708181446755,-500.0,0.00020879,2]
[314319166,1708181446764,-200.63889149,0.00020879,2]
[314319168,1708181446773,-268.48187146,0.00020879,2]
[314319170,1708181446782,-500.0,0.00020879,2]
[314319172,1708181446791,-500.0,0.00020879,2]
[314319174,1708181446800,-500.0,0.00020879,2]
[314319176,1708181446809,-500.0,0.00020879,2]
[314319178,1708181446818,-500.0,0.00020879,2]
[314319180,1708181446828,-500.0,0.00020879,2]
[314319182,1708181446837,-575.17132081,0.00020879,2]
[314319184,1708181446849,-500.0,0.00020879,2]
[314319186,1708181446858,-500.0,0.00020879,2]
[314319188,1708181446868,-500.0,0.00020879,2]
[314319190,1708181446877,-500.0,0.00020879,2]
[314319192,1708181446886,-500.0,0.00020879,2]
[314319194,1708181446895,-500.0,0.00020879,2]
[314319196,1708181446904,-500.0,0.00020879,2]
[314319198,1708181446914,-500.0,0.00020879,2]
[314319200,1708181446922,-500.0,0.00020879,2]
[314319202,1708181446931,-175.27648169,0.00020879,2]
[314319204,1708181446940,-500.0,0.00020879,2]
[314319206,1708181446949,-500.0,0.00020879,2]
[314319208,1708181446958,-584.43761876,0.00020879,2]
[314319210,1708181446967,-173.82681843,0.00020879,2]
[314319212,1708181446977,-500.0,0.00020879,2]
[314319214,1708181446986,-500.0,0.00020879,2]
[314319216,1708181446995,-500.0,0.00020879,2]
[314319218,1708181447004,-500.0,0.00020879,2]
[314319220,1708181447012,-500.0,0.00020879,2]
[314319222,1708181447022,-500.0,0.00020879,2]
[314319224,1708181447031,-306.26414373,0.00020879,2]
[314319226,1708181447040,-500.0,0.00020879,2]
[314319228,1708181447049,-500.0,0.00020879,2]
[314319230,1708181447058,-500.0,0.00020879,2]
[314319232,1708181447067,-500.0,0.00020879,2]
[314319234,1708181447077,-500.0,0.00020879,2]
[314319236,1708181447087,-500.0,0.00020879,2]
[314319238,1708181447099,-517.89424556,0.00020879,2]
[314319240,1708181447108,-500.0,0.00020879,2]
[314319241,1708181447117,-492.72633525,0.00020879,2]
[314319243,1708181447127,-500.0,0.00020879,2]
[314319245,1708181447136,-258.06383618,0.00020879,2]
[314319248,1708181447147,-500.0,0.00020879,2]